[Event "XVI Memorial Lezcano Montalvo 2024"]
[Site "Gran Canaria"]
[Date "2024.03.27"]
[Round "5.3"]
[White "Kurajica, Bojan"]
[Black "Perez Guerra, Raul"]
[Result "1/2-1/2"]
[ECO "E15"]
[WhiteElo "2444"]
[BlackElo "2250"]
[Annotator "TA"]
[PlyCount "68"]
[EventDate "2024.03.23"]
[EventType "swiss"]
[EventCountry "ESP"]
[SourceTitle "playchess.com"]
[Source "ChessBase"]
[SourceQuality "1"]
[TimeControl "5400+30"]

{[%evp 16,68,8,12,20,14,10,-16,-23,-25,-9,-22,-26,-56,-33,-51,-40,-61,-36,-22,-28,-33,-21,-2,87,41,42,47,44,43,36,41,31,47,24,23,82,0,1,0,0,0,0,0,0,0,3,2,2,3,2,1,1,1,2]} 1. Nf3 {[%emt 0:00:15]} Nf6 {[%emt 0:00:13]} 2. d4 {[%emt 0:00:06]} e6 {[%emt 0:00:06]} 3. c4 {[%emt 0:00:38]} b6 {[%emt 0:00:38]} 4. g3 {[%emt 0:00:49]} Ba6 {[%emt 0:00:14]} 5. b3 {[%emt 0:00:32]} Bb4+ {[%emt 0:00:10]} 6. Bd2 {[%emt 0:00:10][%cal Bc1d2,Bd2c3,Bc3b2][%mdl 32]} Be7 {[%emt 0:00:05]} 7. Bg2 {[%emt 0:01:20]} c6 {[%emt 0:00:20]} 8. O-O {[%emt 0:00:34]} d5 {[%emt 0:00:39]} 9. Bc3 {[%emt 0:02:06]} O-O {[%emt 0:04:05]} 10. Nfd2 {[%emt 0:03:50]} c5 {[%emt 0:11:12]} 11. cxd5 {[%emt 0:00:34]} Nxd5 {[%emt 0:00:20]} 12. dxc5 {[%emt 0:00:27]} Bxc5 {[%emt 0:01:18]} 13. Bb2 {[%emt 0:22:56]} Nc6 {[%emt 0:03:53]} 14. a3 {[%emt 0:00:29]} Rc8 {[%emt 0:06:57]} 15. Ne4 {[%emt 0:05:30]} Be7 {[%emt 0:00:45][%cal Bc5e7,Be7f6,Bf6b2][%mdl 32]} 16. b4 {[%emt 0:01:13]} f5 {[%emt 0:06:22]} 17. Nec3 {[%emt 0:02:56]} Nxc3 {[%emt 0:02:09]} 18. Nxc3 {[%emt 0:00:06] Threatens to win with b5.} Bf6 {[%emt 0:00:36]} 19. Qa4 {[%emt 0:02:15][%csl LRa6,LRc6]} Qd2 {[%emt 0:11:03]} (19... Bxc3 $11 20. Bxc3 Bxe2 21. Bxc6 Bxf1 22. Rxf1 b5 23. Qxa7 (23. Qxb5 Qd6 $11) 23... Qc7 24. Qxc7 Rxc7 25. Bxg7 Kxg7 26. Bxb5 Rc3) 20. Rab1 {[%emt 0:17:01]} (20. Qxa6 $16 {[%cal Oc3a4] Black must now prevent Na4!} Qxb2 21. Na4) 20... Bxe2 $14 {[%emt 0:06:09]} 21. Nxe2 {[%emt 0:02:49]} Bxb2 {[%emt 0:00:22]} 22. Bxc6 {[%emt 0:05:50]} Qxe2 {[%emt 0:00:07]} 23. Rfe1 {[%emt 0:00:42][%cal Bf1e1,Be1e3,Be3d3,Bd3d2][%mdl 32]} Qd2 {[%emt 0:01:19]} 24. Rbd1 {[%emt 0:04:43]} (24. Rxe6 Bd4 $11) 24... Qc3 {[%emt 0:00:20][%csl LRa3,LRc6]} 25. Bd7 {[%emt 0:00:47]} Rcd8 {[%emt 0:01:16] [#]} (25... Rc7 $11) 26. Qxa7 {[%emt 0:02:40]} (26. Re3 $1 $16 Qc7 27. Bxe6+ (27. Rxe6 Kh8 $14) 27... Kh8 28. Rxd8 Qxd8 29. Qxa7) 26... Kh8 $11 {[%emt 0:07:13] The position is equal.} 27. Re3 {[%emt 0:03:11]} (27. Qxb6 $2 {perishes.} Rxd7 (27... Bxa3 28. Rxe6 Bxb4 29. Qe3 $11) 28. a4 f4 $19) 27... Qc2 {[%emt 0:00:05]} 28. Red3 {[%emt 0:01:18][%cal Oa3a4]} e5 {[%emt 0:01:07]} 29. R3d2 {[%emt 0:05:42]} Qc3 {[%emt 0:03:28]} 30. Qxb6 {[%emt 0:00:42]} Bxa3 {[%emt 0:03:00]} 31. Rd3 {[%emt 0:08:17]} Qxb4 {[%emt 0:00:33]} 32. Qxb4 {[%emt 0:01:56]} Bxb4 {[%emt 0:00:03] [#]} 33. Bxf5 $1 {[%emt 0:00:07]} Rxd3 {[%emt 0:00:05]} 34. Bxd3 {[%emt 0:00:06]} Bc5 {[%emt 0:02:11] Weighted Error Value: White=0.12 (very precise) /Black=0.14 (very precise) .  Mistake:       	White=2     	Black=2      Inaccurate:     	White=2     	---        OK:         	White=11    	Black=14     Best:        	---       	Black=2} 1/2-1/2

[Event "XVI Memorial Lezcano Montalvo 2024"]
[Site "Gran Canaria"]
[Date "2024.03.27"]
[Round "5.4"]
[White "Fiorito, Francisco"]
[Black "Yankelevich, Lev"]
[Result "1-0"]
[ECO "A24"]
[WhiteElo "2368"]
[BlackElo "2412"]
[Annotator "TA"]
[PlyCount "112"]
[EventDate "2024.03.23"]
[EventType "swiss"]
[EventCountry "ESP"]
[SourceTitle "playchess.com"]
[Source "ChessBase"]
[SourceQuality "1"]
[TimeControl "5400+30"]

{[%evp 28,112,15,14,25,22,10,18,11,0,25,29,39,44,54,65,58,49,37,37,28,45,40,56,57,30,143,15,12,25,50,7,37,28,24,18,234,235,584,573,1357,1333,1389,1367,1696,1320,1114,1112,1094,1094,1075,1045,2429,2057,1384,1389,1039,896,766,158,154,143,145,152,154,151,214,125,233,209,221,213,211,166,690,124,154,150,312,308,326,326,329,324,670,643,156]} 1. Nf3 {[%emt 0:00:04]} Nf6 {[%emt 0:00:09]} 2. g3 {[%emt 0:00:05]} g6 {[%emt 0:01:03]} 3. Bg2 {[%emt 0:00:05]} Bg7 {[%emt 0:00:04]} 4. O-O {[%emt 0:00:07]} O-O {[%emt 0:00:04]} 5. c4 {[%emt 0:00:04]} d6 {[%emt 0:00:03]} 6. Nc3 {[%emt 0:00:06]} e5 {[%emt 0:02:19]} 7. d3 {[%emt 0:00:26]} Re8 {[%emt 0:02:02]} 8. Rb1 {[%emt 0:01:27]} a5 {[%emt 0:00:15]} 9. a3 {[%emt 0:01:14]} c6 {[%emt 0:00:09]} 10. Bg5 {[%emt 0:03:27]} h6 {[%emt 0:07:16]} 11. Bxf6 {[%emt 0:00:05]} Bxf6 {[%emt 0:00:05]} 12. Nd2 {[%emt 0:00:09]} Be6 {[%emt 0:02:27] A24: English Opening vs King's Indian: Lines without ...Nc6.} 13. b4 {[%emt 0:05:19]} axb4 {[%emt 0:00:13]} 14. axb4 {[%emt 0:00:06]} d5 {[%emt 0:00:31]} 15. cxd5 {[%emt 0:01:23]} cxd5 {[%emt 0:00:04]} 16. e4 {[%emt 0:01:26]} d4 {[%emt 0:20:20]} 17. Nd5 {[%emt 0:00:09]} Nd7 {[%emt 0:00:32]} 18. Nc4 $146 {[%emt 0:02:00]} ({Predecessor:} 18. Ra1 Rxa1 19. Qxa1 Be7 20. Qa4 Qb8 21. Qb5 Kg7 22. Nc4 Bf8 23. h3 Rc8 24. f4 exf4 25. gxf4 Bxd5 26. Qxd5 {0-1 Moor,R (2375)-Forster,R (2460) SUI-chT Switzerland 2001 (3.3)}) 18... Bxd5 {[%emt 0:08:59]} 19. exd5 {[%emt 0:00:02]} Nb6 {[%emt 0:00:06]} 20. Na5 {[%emt 0:02:17]} Qd7 {[%emt 0:02:01]} 21. d6 $1 {[%emt 0:02:52]} Rab8 {[%emt 0:14:51]} 22. Rc1 {[%emt 0:19:36]} Na4 {[%emt 0:19:19]} 23. Bc6 {[%emt 0:02:01]} bxc6 {[%emt 0:00:27]} 24. Qxa4 {[%emt 0:00:01]} Qxd6 {[%emt 0:05:27]} 25. Rxc6 {[%emt 0:00:12]} Qd7 $1 {[%emt 0:01:16]} 26. b5 {[%emt 0:00:19]} Bg7 {[%emt 0:00:44]} (26... Kg7 $11) 27. Nc4 {[%emt 0:01:00]} ({White should try} 27. Qc4 $16) 27... e4 $11 {[%emt 0:03:51]} 28. Nd6 {[%emt 0:03:14]} Re5 {[%emt 0:00:10]} 29. Nxe4 {[%emt 0:18:55]} Rbxb5 {[%emt 0:03:23]} (29... Rexb5 $5 30. Rfc1 Rb2 $17) 30. Qa6 {[%emt 0:07:01]} Kh7 {[%emt 0:02:53]} 31. Rfc1 {[%emt 0:02:03]} Qh3 $2 {[%emt 0:00:38]} (31... Ra5 $11 {and Black has nothing to worry.} 32. Qb6 Rf5) 32. Rc7 $18 {[%emt 0:04:24]} Qf5 $2 {[%emt 0:03:49]} (32... Qe6 {is a better chance.} 33. Qxe6 Rxe6 34. Rxf7 Kg8) 33. Nd6 $18 {[%emt 0:03:20]} Qe6 {[%emt 0:00:01]} 34. Rxf7 {[%emt 0:00:45]} Re1+ {[%emt 0:00:44]} 35. Rxe1 {[%emt 0:01:14]} Qxe1+ {[%emt 0:00:01]} 36. Kg2 {[%emt 0:00:01]} Rb1 {[%emt 0:00:11] [#]} 37. Ne4 $1 {[%emt 0:10:51]} Qf1+ {[%emt 0:00:53]} 38. Kf3 {[%emt 0:00:01]} Qd1+ {[%emt 0:00:15]} 39. Kf4 {[%emt 0:00:42]} g5+ {[%emt 0:00:25]} 40. Kf5 {[%emt 0:00:27]} Qf3+ {[%emt 0:00:38]} 41. Ke6 {[%emt 0:00:01]} Qg4+ {[%emt 0:00:10]} 42. Kd5 {[%emt 0:12:29]} Qd1 {[%emt 0:01:58]} 43. Qa7 $2 {[%emt 0:00:00]} (43. Nc5 $18 {has better winning chances. White threatens Qf6 and mate.} Qe2 44. f4 (44. Ne6 $2 Qe5+ 45. Kc4 Rc1+ 46. Kb4 Qb8+ 47. Rb7 Rb1+ 48. Kc5 Rxb7 $19) 44... Qf3+ 45. Kd6) 43... Qb3+ $16 {[%emt 0:00:12]} 44. Kd6 {[%emt 0:00:00]} Qb6+ {[%emt 0:00:54]} 45. Qxb6 Rxb6+ {[%emt 0:00:01]} 46. Kd5 {[%emt 0:00:00]} Rb2 {[%emt 0:00:19]} (46... Kg8 $16 {was worth a try.} 47. Ra7 Rb5+ 48. Ke6 Re5+ 49. Kd7 g4) 47. Rc7 {[%emt 0:00:00]} ({White should play} 47. f4 $18) 47... Rb1 {[%emt 0:00:50]} (47... g4 $16 {was called for.} 48. Rc6 (48. Nf6+ Kg6 $11) 48... Rb5+ 49. Ke6 Re5+ 50. Kf7 Rf5+ 51. Nf6+ Bxf6 52. Rxf6 Re5) 48. Nc5 {[%emt 0:00:00]} Kg6 {[%emt 0:00:21]} 49. Ne6 {[%emt 0:00:00]} Bh8 {[%emt 0:00:38]} 50. g4 {[%emt 0:00:05]} (50. Nxd4 Rd1 $11) 50... Rf1 $2 {[%emt 0:00:22]} (50... Rb5+ 51. Rc5 Rb2) 51. Rc2 $2 {[%emt 0:00:46]} (51. Nxd4 Bxd4 52. Kxd4 Rxf2 $11) (51. f4 $18 {is the precise move to win.} gxf4 52. h4 (52. Nxd4 Kg5 $11)) 51... Rd1 {[%emt 0:00:16]} 52. Rc6 {[%emt 0:01:05]} (52. Nxd4 Rxd3 53. Rc6+ Bf6 $11) 52... Kf7 $2 {[%emt 0:00:35]} (52... Kh7 $16) 53. Rc8 $18 {[%emt 0:00:25]} ({Stronger than} 53. Nxd4 Rxd3 54. Rc4 Rd2 $11) 53... Bf6 {[%emt 0:00:20]} 54. Rc7+ {[%emt 0:00:10]} ({Not} 54. Nxd4 Rxd3 55. Rc4 Rd2 $11) 54... Be7 {[%emt 0:01:23]} 55. Nxd4 {[%emt 0:00:35]} Rxd3 $2 {[%emt 0:00:23]} (55... Kf6 56. Rc6+ Kf7) 56. Ke4 $18 {[%emt 0:00:02]} Rd2 {[%emt 0:01:10]} 1-0

[Event "XVI Memorial Lezcano Montalvo 2024"]
[Site "Gran Canaria"]
[Date "2024.03.27"]
[Round "5.5"]
[White "Oudeh Mishmesh, Omar"]
[Black "Tutisani, Noe"]
[Result "0-1"]
[ECO "B68"]
[WhiteElo "2301"]
[BlackElo "2405"]
[Annotator "TA"]
[PlyCount "88"]
[EventDate "2024.03.23"]
[EventType "swiss"]
[EventCountry "ESP"]
[SourceTitle "playchess.com"]
[Source "ChessBase"]
[SourceQuality "1"]
[TimeControl "5400+30"]

{[%evp 19,88,27,44,-20,-11,-22,-8,-18,0,-18,0,-6,0,0,-5,-10,-9,-10,0,-16,0,0,0,0,0,0,0,-8,-19,-80,-70,-62,-73,-128,-77,-99,-87,-148,-136,-128,-129,-184,-183,-316,-243,-246,-218,-244,-164,-151,-167,-155,-142,-176,-149,-120,-155,-154,-154,-155,-155,-463,-474,-449,-418,-494,-475,-494,-479,-465,-465]} 1. e4 {[%emt 0:00:07]} c5 {[%emt 0:00:15]} 2. Nf3 {[%emt 0:00:07]} d6 {[%emt 0:00:10]} 3. d4 {[%emt 0:00:26]} cxd4 {[%emt 0:00:06]} 4. Nxd4 {[%emt 0:00:05]} Nf6 {[%emt 0:00:08]} 5. Nc3 {[%emt 0:00:05]} Nc6 {[%emt 0:00:20]} 6. Bg5 {[%emt 0:01:03]} e6 {[%emt 0:00:09]} 7. Qd2 {[%emt 0:01:00]} Be7 {[%emt 0:00:25]} 8. O-O-O {[%emt 0:02:11]} a6 {[%emt 0:00:05]} 9. f4 {[%emt 0:02:12]} Bd7 {[%emt 0:00:10]} 10. Be2 {[%emt 0:05:37]} Rc8 {[%emt 0:09:55]} 11. Nxc6 {[%emt 0:06:45]} (11. Nb3 $14) 11... Bxc6 $11 {[%emt 0:00:27]} 12. Bf3 {[%emt 0:00:53]} O-O {[%emt 0:04:40]} 13. e5 {[%emt 0:25:57] The position is equal.} dxe5 {[%emt 0:05:39]} 14. fxe5 {[%emt 0:00:26] Bxc6 would now be deadly.} Qxd2+ {[%emt 0:04:42]} 15. Rxd2 {[%emt 0:01:48] [#]} Nd5 {[%emt 0:00:07]} 16. Bxe7 {[%emt 0:00:24]} (16. Ne4 Bxg5) 16... Nxe7 {[%emt 0:00:07]} 17. Ne4 {[%emt 0:04:54]} Rc7 {[%emt 0:00:23]} 18. Re1 {[%emt 0:05:10]} b5 {[%emt 0:02:18]} 19. Rd6 {[%emt 0:08:49]} Ng6 {[%emt 0:05:24]} 20. Ng5 {[%emt 0:03:58]} Rfc8 {[%emt 0:04:30]} 21. Bxc6 {[%emt 0:07:51]} Rxc6 {[%emt 0:00:06]} 22. Rxc6 {[%emt 0:00:04]} Rxc6 {[%emt 0:00:03][%mdl 4096] Endgame. KRN-KRN} 23. Rd1 {[%emt 0:00:14]} Kf8 {[%emt 0:00:05]} 24. Nxh7+ {[%emt 0:03:11]} (24. Nf3 $11) 24... Ke7 $17 {[%emt 0:02:02]} 25. Ng5 {[%emt 0:00:48]} Nxe5 {[%emt 0:00:05]} 26. Ne4 {[%emt 0:01:09]} ({Better is} 26. g3) 26... Rc4 {[%emt 0:01:07]} (26... Ng4 $142 $1 27. h3 Ne3) 27. Ng3 {[%emt 0:02:19]} Ng4 {[%emt 0:03:44]} 28. h3 {[%emt 0:02:35]} (28. Nf1 $142) 28... Ne3 {[%emt 0:00:04][%csl LRc2,LRd1,LRg2]} 29. Rd2 {[%emt 0:00:04]} f5 {[%emt 0:00:04]} 30. Re2 {[%emt 0:03:42]} (30. b3 $17 Rc6 31. Re2) 30... f4 $19 {[%emt 0:03:40][%cal Oc4d4]} 31. Nh5 {[%emt 0:00:02]} (31. b3 {might work better.} Rd4 32. Rd2 Rxd2 33. Kxd2) 31... g5 {[%emt 0:00:37]} 32. h4 {[%emt 0:00:15]} Rd4 $1 {[%emt 0:08:31]} (32... gxh4 33. b3 Re4 34. Nxf4 $11) 33. Rd2 {[%emt 0:02:12]} f3 {[%emt 0:02:28]} 34. gxf3 {[%emt 0:01:50]} (34. Rxd4 $2 fxg2 35. Kd2 g1=Q $19 (35... g1=B $2 36. Re4 $18)) 34... Rxh4 {[%emt 0:00:03] Black is more active.} 35. Ng3 {[%emt 0:00:06] Repels Rh1+} Rh3 {[%emt 0:00:07]} 36. Re2 {[%emt 0:02:28]} Rxg3 {[%emt 0:00:15]} 37. Rxe3 {[%emt 0:00:03] [#] KR-KR} g4 $1 {[%emt 0:00:03]} 38. Kd2 {[%emt 0:01:27] [#]} Rg2+ {[%emt 0:02:02]} ({Don't take} 38... Rxf3 39. Rxf3 gxf3 40. Ke3 $11) 39. Kd3 {[%emt 0:00:47]} g3 {[%emt 0:00:10] aiming for ...Rf2.} 40. Re4 $2 {[%emt 0:05:26] Loses the game.} (40. f4 $17) 40... Rf2 {[%emt 0:00:06]} 41. Rg4 {[%emt 0:00:14]} g2 {[%emt 0:01:32][%cal Oe7f6]} (41... Rxf3+ 42. Ke4 Rf2 43. Rxg3 $17) 42. b4 {[%emt 0:02:00]} Kf6 {[%emt 0:00:27] Wards off Rg7. Black is clearly winning.} ({Weaker is} 42... Rxf3+ 43. Ke2 $17) 43. c3 {[%emt 0:00:40]} Rxf3+ {[%emt 0:01:01]} ({Less strong is} 43... Rxa2 44. Ke3 $17) 44. Ke2 {[%emt 0:00:34]} Rxc3 {[%emt 0:00:05] Weighted Error Value: White=0.34/Black=0.14 (very precise) .  Loses game:     	White=1     	---        Mistake:       	White=5     	Black=1      Inaccurate:     	---       	Black=1      OK:         	White=12    	Black=9      Best:        	White=2     	Black=6      Strong:       	---       	Black=2} 0-1

[Event "XVI Memorial Lezcano Montalvo 2024"]
[Site "Gran Canaria"]
[Date "2024.03.27"]
[Round "5.6"]
[White "Fiorito, Fabian"]
[Black "Omelja, Artem"]
[Result "1/2-1/2"]
[ECO "C01"]
[WhiteElo "2251"]
[BlackElo "2438"]
[Annotator "TA"]
[PlyCount "43"]
[EventDate "2024.03.23"]
[EventType "swiss"]
[EventCountry "ESP"]
[SourceTitle "playchess.com"]
[Source "ChessBase"]
[SourceQuality "1"]
[TimeControl "5400+30"]

{[%evp 15,43,0,7,1,10,-16,0,-10,0,0,0,-12,0,0,0,0,-3,-9,-10,-12,30,14,45,35,25,35,39,25,21,0]} 1. e4 {[%emt 0:00:03]} e6 {[%emt 0:01:54][%cal Be7e6,Be6d5][%mdl 32]} 2. d4 {[%emt 0:00:05]} d5 {[%emt 0:00:08]} 3. exd5 {[%emt 0:01:21]} exd5 {[%emt 0:00:09]} 4. Nf3 {[%emt 0:00:01]} Nc6 {[%emt 0:00:08]} 5. Be2 {[%emt 0:07:31]} Bd6 {[%emt 0:00:54]} 6. O-O {[%emt 0:00:16]} Nge7 {[%emt 0:00:24][%cal Bg8e7,Be7f5,Bf5d6][%mdl 32]} 7. c4 {[%emt 0:02:37]} dxc4 {[%emt 0:00:26]} 8. Bxc4 {[%emt 0:01:05]} O-O {[%emt 0:00:10]} 9. h3 {[%emt 0:01:20]} Nf5 {[%emt 0:16:06][%cal Of5d4]} 10. Bg5 {[%emt 0:06:01]} Qd7 {[%emt 0:03:47][%cal Of5d4]} 11. d5 {[%emt 0:03:51]} Ne5 {[%emt 0:01:26]} 12. Nxe5 {[%emt 0:00:10]} Bxe5 {[%emt 0:00:09]} 13. Nc3 {[%emt 0:00:20] Dodges b5} h6 {[%emt 0:07:37]} 14. Bd2 {[%emt 0:00:26]} Nd6 {[%emt 0:00:24]} 15. Bd3 {[%emt 0:01:22]} Qd8 {[%emt 0:02:27]} 16. Qh5 {[%emt 0:03:22]} Qf6 {[%emt 0:04:19]} 17. Rae1 {[%emt 0:03:19]} Bf5 {[%emt 0:12:21]} (17... Bd4 {looks sharper.} 18. Be3 Bd7 19. Bxd4 Qxd4 20. Qd1 Qb6) 18. Bxf5 {[%emt 0:02:31]} Bxc3 {[%emt 0:00:38]} 19. Bxc3 {[%emt 0:01:59]} Qxf5 {[%emt 0:00:08]} 20. Qxf5 {[%emt 0:00:54]} Nxf5 {[%emt 0:00:07]} 21. Re5 {[%emt 0:03:05]} Nd6 {[%emt 0:02:41]} 22. Rc1 {[%emt 0:00:59] Weighted Error Value: White=0.04 (flawless) /Black=0.11 (very precise) .  Inaccurate:     	White=1     	Black=2      OK:         	White=6     	Black=5} 1/2-1/2

[Event "XVI Memorial Lezcano Montalvo 2024"]
[Site "Gran Canaria"]
[Date "2024.03.27"]
[Round "5.7"]
[White "Strikovic, Aleksa"]
[Black "Calzetta Ruiz, Monica"]
[Result "1-0"]
[ECO "D30"]
[WhiteElo "2430"]
[BlackElo "2239"]
[Annotator "TA"]
[PlyCount "69"]
[EventDate "2024.03.23"]
[EventType "swiss"]
[EventCountry "ESP"]
[SourceTitle "playchess.com"]
[Source "ChessBase"]
[SourceQuality "1"]
[TimeControl "5400+30"]

{[%evp 17,69,25,34,23,40,43,29,35,30,19,31,36,59,28,30,27,31,38,52,46,101,114,221,221,226,221,227,223,228,228,222,218,226,225,245,232,291,281,292,278,343,308,307,300,477,475,510,521,606,574,1008,1001,895,524]} 1. c4 {[%emt 0:00:17]} e6 {[%emt 0:00:12]} 2. Nf3 {[%emt 0:00:17]} d5 {[%emt 0:00:06]} 3. g3 {[%emt 0:00:09]} c5 {[%emt 0:00:14]} 4. cxd5 {[%emt 0:00:13]} exd5 {[%emt 0:00:07]} 5. d4 {[%emt 0:00:03]} Nc6 {[%emt 0:00:38]} 6. Bg2 {[%emt 0:00:06]} Nf6 {[%emt 0:00:05]} 7. O-O {[%emt 0:00:06]} Be7 {[%emt 0:01:19]} 8. dxc5 {[%emt 0:00:06]} Bxc5 {[%emt 0:00:08]} 9. Qc2 {[%emt 0:00:03]} Bb6 {[%emt 0:11:35]} 10. Nc3 {[%emt 0:00:23]} Be6 {[%emt 0:00:43]} 11. Na4 {[%emt 0:40:39]} O-O {[%emt 0:12:16]} 12. Nxb6 {[%emt 0:05:22] White has an edge.} Qxb6 {[%emt 0:01:32]} 13. Bg5 {[%emt 0:02:55]} Ne4 {[%emt 0:03:52]} 14. Be3 {[%emt 0:01:40]} Qa6 {[%emt 0:00:11]} 15. b3 {[%emt 0:05:36]} Rac8 {[%emt 0:03:17]} 16. Qb2 {[%emt 0:05:03]} Rfe8 {[%emt 0:17:34][%cal Bf8e8,Be8c8,Bc8c5][%mdl 32]} 17. Rfd1 {[%emt 0:02:00]} Nb4 {[%emt 0:04:12]} 18. Nd4 {[%emt 0:02:45] Dodges Nc2. Hoping for a3.} Nc3 {[%emt 0:00:28] White now steadily converts the win.} (18... Bd7 $14) 19. Rdc1 {[%emt 0:07:12]} Ncxa2 {[%emt 0:03:18]} (19... Nb5 $16) 20. Rxc8 $18 {[%emt 0:00:42]} Rxc8 {[%emt 0:00:48]} 21. Bd2 {[%emt 0:00:23] [#] Bxb4 would now be deadly. A strong pair of Bishops.} Qb6 {[%emt 0:15:30]} 22. e3 {[%emt 0:00:46]} ({Weaker is} 22. Rxa2 Nxa2 23. Nxe6 Qxe6 $16) 22... a6 {[%emt 0:06:57]} 23. Rxa2 $40 {[%emt 0:00:33][%mdl 128] White has strong attack.} Nxa2 {[%emt 0:00:03]} 24. Qxa2 {[%emt 0:00:06]} h6 {[%emt 0:01:27]} 25. h3 {[%emt 0:00:09]} Rc5 {[%emt 0:00:26]} 26. Qa1 {[%emt 0:00:51]} Qc7 {[%emt 0:02:09]} 27. b4 {[%emt 0:03:47]} Rc4 {[%emt 0:00:31]} 28. Bf1 {[%emt 0:00:05]} Qe5 {[%emt 0:00:12]} 29. Bxc4 {[%emt 0:08:21]} dxc4 {[%emt 0:00:07]} 30. Kg2 {[%emt 0:00:29]} g5 {[%emt 0:09:06]} (30... Bc8 $142 31. f3 Be6) 31. Qc3 {[%emt 0:02:30] White is clearly winning.} Bd5+ {[%emt 0:00:23]} 32. f3 {[%emt 0:00:10]} h5 {[%emt 0:02:24]} 33. e4 {[%emt 0:00:24]} h4 {[%emt 0:01:47]} 34. gxh4 {[%emt 0:01:20]} gxh4 {[%emt 0:00:43]} 35. Nf5 {[%emt 0:00:08] Weighted Error Value: White=0.04 (flawless) /Black=0.39.  Mistake:       	---       	Black=3      Inaccurate:     	White=1     	Black=1      OK:         	White=11    	Black=3      Best:        	White=3     	---} 1-0

[Event "XVI Memorial Lezcano Montalvo 2024"]
[Site "Gran Canaria"]
[Date "2024.03.27"]
[Round "5.8"]
[White "Fiorito, Joaquin"]
[Black "Hernandez Leon, Alberto"]
[Result "0-1"]
[ECO "B33"]
[WhiteElo "2409"]
[BlackElo "2207"]
[Annotator "TA"]
[PlyCount "82"]
[EventDate "2024.03.23"]
[EventType "swiss"]
[EventCountry "ESP"]
[SourceTitle "playchess.com"]
[Source "ChessBase"]
[SourceQuality "1"]
[TimeControl "5400+30"]

{[%evp 26,82,37,0,31,43,33,39,28,29,48,34,47,30,35,-61,-55,-59,-40,-40,-28,-37,-63,-116,-131,-174,-98,-220,-210,-226,-221,-228,-221,-479,-489,-495,-489,-607,-594,-607,-498,-507,-502,-485,-474,-638,-630,-741,-741,-2010,-1837,-1567,-1482,-29985,-29986,-29987,-29988,-29996,-29997]} 1. e4 {[%emt 0:00:02]} c5 {[%emt 0:00:57]} 2. Nf3 {[%emt 0:00:06]} e6 {[%emt 0:00:13]} 3. d4 {[%emt 0:00:06]} cxd4 {[%emt 0:00:08]} 4. Nxd4 {[%emt 0:00:03]} Nf6 {[%emt 0:00:30]} 5. Nc3 {[%emt 0:00:19]} Nc6 {[%emt 0:00:10]} 6. Ndb5 {[%emt 0:01:26][%cal Bd4b5,Bb5a3,Ba3c2,Bc2e3,Be3c4][%mdl 32]} d6 {[%emt 0:01:22]} 7. Bf4 {[%emt 0:00:05]} e5 {[%emt 0:00:08]} 8. Bg5 {[%emt 0:00:03]} a6 {[%emt 0:00:57]} 9. Na3 {[%emt 0:00:21]} b5 {[%emt 0:01:03]} 10. Nd5 {[%emt 0:00:18]} Be7 {[%emt 0:02:11]} 11. Bxf6 {[%emt 0:00:05]} Bxf6 {[%emt 0:00:15]} 12. c3 {[%emt 0:00:06]} Bg5 {[%emt 0:02:29]} 13. Nc2 {[%emt 0:00:21]} O-O {[%emt 0:01:54]} 14. Bd3 {[%emt 0:00:51]} Kh8 {[%emt 0:04:54]} 15. a4 {[%emt 0:01:37]} bxa4 {[%emt 0:02:09]} 16. Rxa4 {[%emt 0:02:13]} a5 {[%emt 0:00:25] White is slightly better.} 17. O-O {[%emt 0:06:30]} Be6 {[%emt 0:03:12]} 18. Nce3 {[%emt 0:04:08]} Rb8 {[%emt 0:08:36]} 19. Nc4 {[%emt 0:07:05] A dynamic duo of knights.} f5 {[%emt 0:17:04]} 20. b4 {[%emt 0:13:53]} (20. Qe2 $14) 20... axb4 $15 {[%emt 0:01:15]} 21. Ra6 {[%emt 0:00:06]} Bxd5 {[%emt 0:07:12]} 22. exd5 {[%emt 0:00:05]} Ne7 {[%emt 0:00:58][%cal Bc6e7,Be7d5,Bd5e3][%mdl 32]} 23. cxb4 {[%emt 0:17:36]} Rxb4 {[%emt 0:05:14]} 24. Qe1 {[%emt 0:15:55] [#]} (24. Re1 $15) 24... Qb8 $1 $17 {[%emt 0:11:27] And now ...e4 would win.} (24... Nxd5 $2 25. Rxd6 Qc8 26. Rxd5 $18) 25. f4 {[%emt 0:03:24] [#]} exf4 {[%emt 0:02:15]} ({Inferior is} 25... Bxf4 26. Rxf4 exf4 (26... Nxd5 27. Rf2 $16) 27. Qxe7 $11) ({Black should try} 25... Bf6 $1 $19 {...e4 is the strong threat.} 26. fxe5 Bxe5) 26. Kh1 {[%emt 0:04:49] Loses the game.} (26. Qe6 $17) 26... Nxd5 $19 {[%emt 0:04:13]} 27. Ra5 {[%emt 0:00:10] [#]} Rxc4 $1 {[%emt 0:06:34]} 28. Bxc4 {[%emt 0:04:00]} (28. Rxd5 Rc5) 28... Ne3 {[%emt 0:00:08]} 29. Bd5 {[%emt 0:00:03]} (29. Be2) 29... Bd8 {[%emt 0:02:29]} (29... Nxf1 $2 30. Qxf1 (30. Ra8 $2 Qxa8 31. Bxa8 Rxa8 $19) 30... Qc7 31. Ra1 $19) 30. Ra1 {[%emt 0:05:14]} ({But not} 30. Ra8 Qb5 31. Rxf4 Qxd5) 30... Nxd5 {[%emt 0:03:14]} 31. Qe6 {[%emt 0:00:18]} Ne3 {[%emt 0:01:02]} 32. Rxf4 {[%emt 0:00:48]} Qb2 {[%emt 0:00:54][%csl LRa1,LRg2]} 33. Rg1 {[%emt 0:00:02]} Qe5 {[%emt 0:00:28]} 34. Qxe5 {[%emt 0:00:10]} dxe5 {[%emt 0:00:02]} 35. Rf3 {[%emt 0:00:06]} Bb6 {[%emt 0:03:06]} 36. Re1 {[%emt 0:00:29]} f4 {[%emt 0:00:41]} 37. g3 {[%emt 0:00:01]} g5 {[%emt 0:00:23] White must now prevent ...e4.} 38. gxf4 {[%emt 0:00:02]} gxf4 {[%emt 0:00:55] ( -> ...e4)} 39. Rh3 {[%emt 0:00:03]} f3 {[%emt 0:00:51] Black mates.} 40. Rg1 {[%emt 0:00:13]} f2 {[%emt 0:00:36]} 41. Rg8+ {[%emt 0:00:35]} Rxg8 {[%emt 0:00:39] Weighted Error Value: White=0.73/Black=0.14 (very precise) .  Mistake:       	White=4     	Black=1      Inaccurate:     	White=2     	---        OK:         	White=5     	Black=11     Best:        	---       	Black=2      Strong:       	---       	Black=1} 0-1